[Event "58th Akiba Rubinstein C 2022"]
[Site "Polanica-Zdroj"]
[Date "2022.08.19"]
[Round "7.3"]
[White "Kawula, Andrzej"]
[Black "fainberg, Boris"]
[Result "1/2-1/2"]
[ECO "E16"]
[WhiteElo "1870"]
[BlackElo "2015"]
[Annotator "NA RC"]
[PlyCount "161"]
[EventDate "2022.08.13"]
[EventCountry "POL"]
[SourceTitle "playchess.com"]
[Source "ChessBase"]
[SourceQuality "1"]
[TimeControl "40/5400+30:1800+30"]

1. d4 {[%emt 0:00:14]} Nf6 {[%emt 0:01:06]} 2. c4 {[%emt 0:00:17]} e6 {[%emt 0:00:10]} 3. Nf3 {[%emt 0:01:18]} Bb4+ {[%emt 0:00:11]} 4. Bd2 {[%emt 0:00:16]} Qe7 {[%emt 0:00:19]} 5. Nc3 {[%emt 0:01:21]} b6 {[%emt 0:05:31]} 6. e3 {[%emt 0:02:11]} Bb7 {[%emt 0:00:27]} 7. Bd3 {[%emt 0:04:57]} O-O {[%emt 0:05:03]} 8. O-O {[%emt 0:00:43]} d5 {[%emt 0:07:59]} 9. cxd5 {[%emt 0:02:01]} exd5 {[%emt 0:00:42]} 10. Rc1 {[%emt 0:03:05]} a6 {[%emt 0:02:06]} 11. Ne5 {[%emt 0:06:10]} Bd6 {[%emt 0:05:23]} 12. f4 {[%emt 0:00:48]} c5 {[%emt 0:06:49]} 13. Ne2 {[%emt 0:03:16]} Nc6 {[%emt 0:07:50]} 14. Ng3 {[%emt 0:03:22]} g6 15. Qf3 {[%emt 0:12:35]} Rac8 {[%emt 0:06:02]} 16. Nxc6 {[%emt 0:01:27]} Bxc6 {[%emt 0:01:22]} 17. f5 {[%emt 0:02:33]} Bb5 {[%emt 0:05:01]} 18. Bxb5 {[%emt 0:05:34]} axb5 {[%emt 0:00:02]} 19. Rce1 {[%emt 0:00:23]} Bxg3 {[%emt 0:02:06]} 20. hxg3 {[%emt 0:12:41]} Ne4 {[%emt 0:01:56]} 21. Bc1 {[%emt 0:06:32]} Rc6 {[%emt 0:06:02]} 22. g4 {[%emt 0:03:10]} Qh4 {[%emt 0:09:16]} 23. Qh3 Qg3 {[%emt 0:02:01]} 24. Rd1 {[%emt 0:04:42]} Rd8 25. Bd2 {[%emt 0:05:43]} b4 {[%emt 0:10:00]} 26. Be1 {[%emt 0:02:16]} Qxh3 {[%emt 0:03:38]} 27. gxh3 {[%emt 0:00:08]} Rcc8 {[%emt 0:02:56]} 28. fxg6 {[%emt 0:08:14]} fxg6 {[%emt 0:02:48]} 29. Rf4 {[%emt 0:00:10]} Ra8 {[%emt 0:02:18]} 30. dxc5 {[%emt 0:00:58]} Nxc5 {[%emt 0:00:13]} 31. Rxb4 {[%emt 0:00:19]} Rxa2 {[%emt 0:00:09]} 32. Rxb6 {[%emt 0:00:33]} Ne4 {[%emt 0:00:52]} 33. Rb5 {[%emt 0:00:34]} Kf7 {[%emt 0:00:43]} 34. Rbxd5 {[%emt 0:03:27]} Rxd5 {[%emt 0:00:15]} 35. Rxd5 {[%emt 0:00:05]} Rxb2 {[%emt 0:00:41]} 36. Re5 {[%emt 0:00:22]} Nd6 {[%emt 0:01:37]} 37. Bh4 {[%emt 0:01:13]} h6 {[%emt 0:01:12]} 38. Re7+ {[%emt 0:00:24]} Kf8 {[%emt 0:00:35]} 39. Re6 {[%emt 0:00:08]} Nc4 {[%emt 0:01:22]} 40. Rxg6 {[%emt 0:00:00]} h5 {[%emt 0:00:00]} 41. Bf2 {[%emt 0:07:00]} hxg4 {[%emt 0:01:10]} 42. Rxg4 {[%emt 0:02:56]} Ne5 {[%emt 0:00:49]} 43. Rf4+ {[%emt 0:00:27]} Kg8 {[%emt 0:00:38]} 44. Kg2 {[%emt 0:01:14]} Nd3 {[%emt 0:00:49]} 45. Rf5 {[%emt 0:00:14]} Kg7 {[%emt 0:00:29]} 46. Kg3 {[%emt 0:01:19]} Kg6 {[%emt 0:00:05]} 47. Rf8 {[%emt 0:02:56]} Kg7 {[%emt 0:04:33]} 48. Rf3 {[%emt 0:01:37]} Re2 {[%emt 0:00:41]} 49. Kg2 {[%emt 0:02:11]} Rc2 {[%emt 0:15:08]} 50. Kf1 {[%emt 0:02:13]} Kg6 {[%emt 0:00:24]} 51. Bg3 {[%emt 0:00:23]} Nc5 {[%emt 0:00:28]} 52. Rf4 {[%emt 0:02:50]} Ne6 {[%emt 0:00:27]} 53. Rg4+ {[%emt 0:00:31]} Kh5 {[%emt 0:00:38]} 54. Rh4+ {[%emt 0:01:37]} Kg6 {[%emt 0:02:14]} 55. Ra4 {[%emt 0:00:32]} Kf5 {[%emt 0:02:56]} 56. h4 {[%emt 0:01:21]} Nc5 {[%emt 0:00:33]} 57. Rf4+ {[%emt 0:00:14]} Kg6 {[%emt 0:00:19]} 58. Rd4 {[%emt 0:00:22]} Kf5 {[%emt 0:00:34]} 59. Rf4+ {[%emt 0:00:58]} Kg6 {[%emt 0:00:09]} 60. Rd4 {[%emt 0:04:07]} Kf5 {[%emt 0:00:23]} 61. Bf4 {[%emt 0:02:00]} Kg4 {[%emt 0:01:47]} 62. Bg5+ {[%emt 0:00:42]} Kf3 {[%emt 0:00:14]} 63. Rf4+ {[%emt 0:00:01]} Kxe3 {[%emt 0:01:01]} 64. Rc4+ {[%emt 0:00:55]} Kd3 {[%emt 0:00:08]} 65. Rxc2 {[%emt 0:00:11]} Kxc2 {[%emt 0:00:02]} 66. Ke2 {[%emt 0:00:28]} Kc3 {[%emt 0:01:57]} 67. Ke3 {[%emt 0:00:02]} Kc4 {[%emt 0:00:13]} 68. Kf4 {[%emt 0:00:26]} Kd5 {[%emt 0:00:44]} 69. Kf5 {[%emt 0:00:05]} Ne6 {[%emt 0:02:04]} 70. Bf6 {[%emt 0:00:28]} Nf8 {[%emt 0:01:07]} 71. h5 {[%emt 0:02:17]} Kd6 {[%emt 0:00:18]} 72. Bb2 {[%emt 0:01:53]} Ke7 {[%emt 0:00:25]} 73. h6 {[%emt 0:04:33]} Kf7 {[%emt 0:01:00]} 74. Bg7 {[%emt 0:00:14]} Ne6 {[%emt 0:02:31]} 75. Be5 {[%emt 0:00:32]} Nf8 {[%emt 0:00:08]} 76. Bd4 {[%emt 0:00:42]} Nh7 {[%emt 0:00:52]} 77. Bg7 {[%emt 0:00:23]} Nf8 {[%emt 0:00:08]} 78. Bxf8 {[%emt 0:00:40]} Kxf8 {[%emt 0:00:10]} 79. Kg6 {[%emt 0:00:06]} Kg8 {[%emt 0:00:06]} 80. h7+ {[%emt 0:00:04]} Kh8 {[%emt 0:00:08]} 81. Kh6 {[%emt 0:00:03]} 1/2-1/2

[Event "58th Akiba Rubinstein C 2022"]
[Site "Polanica-Zdroj"]
[Date "2022.08.19"]
[Round "7.4"]
[White "Marusenko, Petr"]
[Black "Pyka, Roman"]
[Result "1-0"]
[ECO "A48"]
[WhiteElo "2075"]
[BlackElo "1881"]
[Annotator "NA RC"]
[PlyCount "75"]
[EventDate "2022.08.13"]
[EventCountry "POL"]
[SourceTitle "playchess.com"]
[Source "ChessBase"]
[SourceQuality "1"]
[TimeControl "40/5400+30:1800+30"]

1. d4 {[%emt 0:00:30]} Nf6 {[%emt 0:00:30]} 2. Nf3 {[%emt 0:00:30]} g6 {[%emt 0:00:30]} 3. Bf4 {[%emt 0:00:30]} Bg7 {[%emt 0:00:30]} 4. c3 {[%emt 0:00:30]} d5 {[%emt 0:00:30]} 5. h3 {[%emt 0:00:30]} c6 {[%emt 0:00:30]} 6. e3 {[%emt 0:00:30]} Qb6 {[%emt 0:00:30]} 7. Qc1 {[%emt 0:01:34]} Bf5 {[%emt 0:00:39]} 8. Nbd2 {[%emt 0:00:16]} Nbd7 {[%emt 0:00:39]} 9. g4 {[%emt 0:00:53]} Be4 {[%emt 0:00:25]} 10. Nxe4 {[%emt 0:00:08]} Nxe4 {[%emt 0:00:29]} 11. Bd3 {[%emt 0:00:23]} Nd6 {[%emt 0:00:54]} 12. O-O {[%emt 0:01:22]} O-O {[%emt 0:07:34]} 13. b3 {[%emt 0:00:40]} c5 {[%emt 0:01:20]} 14. Ne5 {[%emt 0:00:46]} Nxe5 {[%emt 0:01:48]} 15. dxe5 {[%emt 0:00:19]} Nb5 {[%emt 0:02:34]} 16. Be2 {[%emt 0:02:54]} Nc7 {[%emt 0:04:18]} 17. Bg3 {[%emt 0:00:53]} Rac8 {[%emt 0:03:41]} 18. Qd2 {[%emt 0:02:53]} Rfd8 {[%emt 0:03:41]} 19. Rad1 {[%emt 0:00:19]} f6 {[%emt 0:08:03]} 20. exf6 {[%emt 0:05:58]} Qxf6 {[%emt 0:00:47]} 21. c4 {[%emt 0:00:59]} d4 {[%emt 0:00:51]} 22. e4 {[%emt 0:01:33]} e5 {[%emt 0:04:33]} 23. f4 {[%emt 0:01:15]} Qe7 {[%emt 0:00:46]} 24. f5 {[%emt 0:00:29]} Bf6 {[%emt 0:01:09]} 25. Qe1 {[%emt 0:03:13]} Bg5 {[%emt 0:01:38]} 26. Kg2 {[%emt 0:00:05]} Rf8 {[%emt 0:01:07]} 27. Bd3 {[%emt 0:01:00]} Be3 {[%emt 0:02:33]} 28. h4 {[%emt 0:00:22]} Rce8 {[%emt 0:03:34]} 29. Rf3 {[%emt 0:04:22]} g5 {[%emt 0:07:16]} 30. hxg5 {[%emt 0:02:08]} Qxg5 {[%emt 0:00:14]} 31. Bh4 {[%emt 0:00:06]} Qg7 {[%emt 0:01:16]} 32. Qg3 {[%emt 0:00:22]} h6 {[%emt 0:01:17]} 33. Rdf1 {[%emt 0:01:24]} Bg5 {[%emt 0:02:35]} 34. f6 {[%emt 0:05:58]} Qf7 {[%emt 0:00:07]} 35. Bxg5 {[%emt 0:00:02]} hxg5 {[%emt 0:00:27]} 36. Rh1 {[%emt 0:00:01]} Qg6 37. Qh3 Kf7 38. Qh7+ 1-0

[Event "58th Akiba Rubinstein C 2022"]
[Site "Polanica-Zdroj"]
[Date "2022.08.19"]
[Round "7.5"]
[White "Poniewierski, Piotr"]
[Black "Zowada, Kazimierz"]
[Result "1/2-1/2"]
[ECO "E67"]
[WhiteElo "1747"]
[BlackElo "2041"]
[Annotator "NA RC"]
[PlyCount "79"]
[EventDate "2022.08.13"]
[EventCountry "POL"]
[SourceTitle "playchess.com"]
[Source "ChessBase"]
[SourceQuality "1"]
[TimeControl "40/5400+30:1800+30"]

1. Nf3 {[%emt 0:00:04]} g6 {[%emt 0:00:29]} 2. g3 {[%emt 0:00:22]} Bg7 {[%emt 0:00:16]} 3. d4 {[%emt 0:00:09]} d6 {[%emt 0:00:18]} 4. c4 {[%emt 0:00:20]} Nf6 {[%emt 0:00:18]} 5. Bg2 {[%emt 0:00:10]} O-O {[%emt 0:01:11]} 6. O-O {[%emt 0:00:11]} Nbd7 {[%emt 0:00:55]} 7. Nc3 {[%emt 0:00:12]} e5 {[%emt 0:00:24]} 8. h3 {[%emt 0:01:00]} a5 {[%emt 0:04:30]} 9. Re1 {[%emt 0:01:49]} Re8 {[%emt 0:00:45]} 10. e4 {[%emt 0:00:16]} exd4 {[%emt 0:01:39]} 11. Nxd4 {[%emt 0:00:15]} Nc5 {[%emt 0:00:15]} 12. b3 {[%emt 0:07:13]} Bd7 {[%emt 0:07:44]} 13. Kh2 {[%emt 0:02:52]} c6 {[%emt 0:01:44]} 14. f3 {[%emt 0:09:56]} Qc7 {[%emt 0:00:53]} 15. Be3 {[%emt 0:02:03]} Re7 {[%emt 0:02:04]} 16. Qd2 {[%emt 0:01:53]} Rae8 {[%emt 0:04:30]} 17. Bf2 {[%emt 0:03:01]} h5 {[%emt 0:02:37]} 18. Rad1 {[%emt 0:02:12]} h4 {[%emt 0:09:42]} 19. Nde2 Nh5 {[%emt 0:02:44]} 20. g4 {[%emt 0:18:24]} Be5+ {[%emt 0:02:06]} 21. Kg1 {[%emt 0:06:11]} Ng3 {[%emt 0:05:23]} 22. Qh6 {[%emt 0:05:27]} Ne6 {[%emt 0:03:24]} 23. f4 {[%emt 0:10:37]} Nxf4 {[%emt 0:00:47]} 24. Nxf4 {[%emt 0:03:25]} Bxc3 {[%emt 0:00:19]} 25. Qxh4 {[%emt 0:11:36]} Nxe4 {[%emt 0:01:45]} 26. Bxe4 {[%emt 0:01:55]} Rxe4 {[%emt 0:00:08]} 27. Rxe4 {[%emt 0:01:02]} Rxe4 {[%emt 0:00:07]} 28. Qg5 {[%emt 0:01:55]} Bg7 {[%emt 0:07:31]} 29. Nd3 {[%emt 0:05:28]} c5 {[%emt 0:04:49]} 30. Nf4 {[%emt 0:00:52]} Bc6 {[%emt 0:00:36]} 31. Nd5 {[%emt 0:00:44]} Bxd5 {[%emt 0:01:10]} 32. Qxd5 {[%emt 0:00:36]} Re6 {[%emt 0:00:44]} 33. Bg3 {[%emt 0:01:06]} Bd4+ {[%emt 0:00:36]} 34. Bf2 {[%emt 0:01:19]} Bxf2+ {[%emt 0:02:37]} 35. Kxf2 {[%emt 0:00:07]} Qe7 {[%emt 0:00:36]} 36. Qd2 {[%emt 0:01:31]} Rf6+ {[%emt 0:01:30]} 37. Kg3 Qe5+ {[%emt 0:02:30]} 38. Kh4 {[%emt 0:01:30]} Qe7 39. Kg3 Qe5+ 40. Kh4 1/2-1/2

[Event "58th Akiba Rubinstein C 2022"]
[Site "Polanica-Zdroj"]
[Date "2022.08.19"]
[Round "7.6"]
[White "Mazalon, Mariusz"]
[Black "Gromada, Andrzej"]
[Result "1/2-1/2"]
[ECO "E11"]
[WhiteElo "1994"]
[BlackElo "1680"]
[Annotator "NA RC"]
[PlyCount "52"]
[EventDate "2022.08.13"]
[EventCountry "POL"]
[SourceTitle "playchess.com"]
[Source "ChessBase"]
[SourceQuality "1"]
[TimeControl "40/5400+30:1800+30"]

1. d4 {[%emt 0:00:12]} e6 {[%emt 0:00:42]} 2. Nf3 {[%emt 0:00:45]} Nf6 {[%emt 0:00:13]} 3. c4 {[%emt 0:00:38]} Bb4+ {[%emt 0:00:13]} 4. Nbd2 {[%emt 0:02:39]} b6 {[%emt 0:01:42]} 5. g3 {[%emt 0:01:24]} Bb7 {[%emt 0:00:09]} 6. Bg2 {[%emt 0:00:04]} O-O {[%emt 0:03:36]} 7. O-O {[%emt 0:02:27]} d5 {[%emt 0:06:58]} 8. cxd5 {[%emt 0:10:04]} exd5 {[%emt 0:06:00]} 9. a3 {[%emt 0:05:01]} Bd6 {[%emt 0:00:16]} 10. b3 {[%emt 0:00:09]} Re8 {[%emt 0:02:46]} 11. Bb2 {[%emt 0:00:08]} Nbd7 {[%emt 0:01:48]} 12. Re1 {[%emt 0:00:58]} a5 {[%emt 0:04:09]} 13. Qc2 {[%emt 0:01:58]} Rc8 {[%emt 0:01:08]} 14. Nh4 {[%emt 0:03:38]} g6 {[%emt 0:02:09]} 15. Nc4 {[%emt 0:09:30]} Bf8 {[%emt 0:00:50]} 16. Ne5 c5 {[%emt 0:00:58]} 17. Nxd7 {[%emt 0:04:59]} Qxd7 {[%emt 0:01:00]} 18. dxc5 {[%emt 0:01:46]} Bxc5 {[%emt 0:02:59]} 19. Qd3 {[%emt 0:04:56]} Ne4 {[%emt 0:01:03]} 20. e3 {[%emt 0:07:24]} Rcd8 {[%emt 0:26:25]} 21. Rad1 {[%emt 0:05:43]} Qd6 {[%emt 0:02:20]} 22. a4 {[%emt 0:13:56]} Qe6 {[%emt 0:07:44]} 23. Bxe4 {[%emt 0:09:00]} Qxe4 {[%emt 0:00:16]} 24. Bd4 {[%emt 0:01:08]} Bb4 {[%emt 0:02:49]} 25. Bxb6 {[%emt 0:07:45]} Qxd3 {[%emt 0:00:28]} 26. Rxd3 {[%emt 0:00:28]} Bxe1 {[%emt 0:00:11]} 1/2-1/2

[Event "58th Akiba Rubinstein C 2022"]
[Site "Polanica-Zdroj"]
[Date "2022.08.19"]
[Round "7.7"]
[White "Krupa, Jerzy"]
[Black "Szylko, Waldemar"]
[Result "0-1"]
[ECO "B15"]
[WhiteElo "1771"]
[BlackElo "1911"]
[Annotator "NA RC"]
[PlyCount "80"]
[EventDate "2022.08.13"]
[EventCountry "POL"]
[SourceTitle "playchess.com"]
[Source "ChessBase"]
[SourceQuality "1"]
[TimeControl "40/5400+30:1800+30"]

1. e4 {[%emt 0:00:06]} c6 {[%emt 0:00:09]} 2. d4 {[%emt 0:00:34]} d5 {[%emt 0:00:11]} 3. f3 {[%emt 0:00:29]} dxe4 {[%emt 0:00:49]} 4. Nc3 {[%emt 0:00:26]} Nf6 {[%emt 0:00:38]} 5. Bc4 {[%emt 0:01:51]} e3 {[%emt 0:01:50]} 6. Bxe3 {[%emt 0:00:35]} Bf5 {[%emt 0:00:17]} 7. Nge2 {[%emt 0:02:55]} e6 {[%emt 0:00:15]} 8. g4 {[%emt 0:02:13]} Bg6 {[%emt 0:00:55]} 9. h4 {[%emt 0:00:07]} h6 {[%emt 0:00:52]} 10. Nf4 {[%emt 0:00:51]} Bh7 {[%emt 0:00:08]} 11. Qd2 {[%emt 0:09:20]} Nd5 {[%emt 0:00:39]} 12. O-O-O {[%emt 0:02:11]} Bb4 {[%emt 0:03:28]} 13. g5 {[%emt 0:09:49]} Bf5 {[%emt 0:05:54]} 14. Nfxd5 {[%emt 0:04:30]} cxd5 {[%emt 0:03:02]} 15. Bb5+ {[%emt 0:00:39]} Nc6 {[%emt 0:00:33]} 16. gxh6 {[%emt 0:00:18]} gxh6 {[%emt 0:01:15]} 17. Bxh6 {[%emt 0:05:51]} Rc8 {[%emt 0:01:13]} 18. Qg5 {[%emt 0:04:31]} Qa5 {[%emt 0:04:57]} 19. Qf6 {[%emt 0:07:11]} Rxh6 {[%emt 0:02:34]} 20. Qxh6 {[%emt 0:00:48]} Bxc3 {[%emt 0:00:33]} 21. bxc3 {[%emt 0:19:14]} Qxb5 {[%emt 0:00:51]} 22. Rh2 {[%emt 0:04:44]} Na5 {[%emt 0:03:18]} 23. Rg1 {[%emt 0:01:52]} Nc4 {[%emt 0:03:15]} 24. Kd1 {[%emt 0:05:18]} Qb2 {[%emt 0:08:20]} 25. Rg8+ {[%emt 0:01:05]} Kd7 {[%emt 0:00:34]} 26. Rxc8 {[%emt 0:00:07]} Kxc8 {[%emt 0:00:03]} 27. Qf8+ {[%emt 0:02:24]} Kc7 {[%emt 0:00:36]} 28. Qe7+ {[%emt 0:01:18]} Kc6 {[%emt 0:01:31]} 29. Qe8+ {[%emt 0:05:04]} Kb6 {[%emt 0:01:13]} 30. Qd8+ {[%emt 0:00:22]} Ka6 {[%emt 0:00:41]} 31. Qg5 {[%emt 0:01:47]} Qxc3 {[%emt 0:01:01]} 32. Qf4 {[%emt 0:01:22]} Nb2+ {[%emt 0:02:10]} 33. Ke2 {[%emt 0:00:25]} Qxc2+ {[%emt 0:01:17]} 34. Qd2 {[%emt 0:01:22]} Qc4+ {[%emt 0:02:51]} 35. Kf2 {[%emt 0:01:41]} Nd3+ {[%emt 0:00:29]} 36. Ke3 {[%emt 0:00:46]} Qc7 {[%emt 0:01:15]} 37. Rh1 {[%emt 0:02:15]} Qf4+ {[%emt 0:01:15]} 38. Ke2 {[%emt 0:00:01]} Qxd4 {[%emt 0:00:32]} 39. Kf1 {[%emt 0:00:49]} Qe5 {[%emt 0:02:38]} 40. h5 {[%emt 0:00:00]} Qg3 0-1

[Event "58th Akiba Rubinstein C 2022"]
[Site "Polanica-Zdroj"]
[Date "2022.08.19"]
[Round "7.8"]
[White "Grubiak, Roman"]
[Black "Krasowski, Slawomir"]
[Result "1-0"]
[ECO "B08"]
[WhiteElo "1637"]
[BlackElo "1855"]
[Annotator "NA RC"]
[PlyCount "63"]
[EventDate "2022.08.13"]
[EventCountry "POL"]
[SourceTitle "playchess.com"]
[Source "ChessBase"]
[SourceQuality "1"]
[TimeControl "40/5400+30:1800+30"]

1. d4 {[%emt 0:01:26]} Nf6 {[%emt 0:00:11]} 2. Nf3 {[%emt 0:00:20]} g6 {[%emt 0:00:11]} 3. Nc3 {[%emt 0:00:29]} Bg7 {[%emt 0:01:13]} 4. e4 {[%emt 0:00:11]} d6 {[%emt 0:00:06]} 5. Bf4 {[%emt 0:00:36]} O-O {[%emt 0:00:37]} 6. Qd2 {[%emt 0:00:54]} c6 {[%emt 0:01:31]} 7. h3 {[%emt 0:00:45]} b5 {[%emt 0:01:30]} 8. Bd3 {[%emt 0:04:01]} a6 {[%emt 0:03:48]} 9. O-O {[%emt 0:00:38]} Bb7 {[%emt 0:00:30]} 10. Rfe1 {[%emt 0:01:21]} c5 {[%emt 0:01:20]} 11. d5 {[%emt 0:03:13]} b4 {[%emt 0:02:56]} 12. Nd1 {[%emt 0:00:38]} Nbd7 {[%emt 0:00:46]} 13. c3 {[%emt 0:00:44]} a5 {[%emt 0:01:40]} 14. Bh6 {[%emt 0:03:25]} Qb6 {[%emt 0:03:01]} 15. Bxg7 {[%emt 0:00:28]} Kxg7 {[%emt 0:00:01]} 16. c4 {[%emt 0:01:31]} a4 {[%emt 0:00:53]} 17. e5 {[%emt 0:01:03]} dxe5 {[%emt 0:05:52]} 18. Nxe5 {[%emt 0:00:03]} Qd6 {[%emt 0:01:40]} 19. Nxd7 Nxd7 20. Ne3 {[%emt 0:04:08]} Ne5 {[%emt 0:03:05]} 21. Ng4 {[%emt 0:03:09]} Nxd3 {[%emt 0:01:42]} 22. Qxd3 {[%emt 0:00:03]} e6 {[%emt 0:00:20]} 23. Rad1 {[%emt 0:01:50]} exd5 {[%emt 0:01:06]} 24. cxd5 {[%emt 0:00:51]} h5 {[%emt 0:00:58]} 25. Ne3 {[%emt 0:02:04]} Ba6 {[%emt 0:01:20]} 26. Qc2 {[%emt 0:04:37]} Bb5 {[%emt 0:03:51]} 27. b3 {[%emt 0:01:56]} Rfe8 {[%emt 0:01:36]} 28. Qb2+ {[%emt 0:02:57]} Kg8 {[%emt 0:02:02]} 29. Qd2 {[%emt 0:01:10]} axb3 {[%emt 0:01:10]} 30. axb3 {[%emt 0:00:03]} Ra3 {[%emt 0:00:23]} 31. Nc4 {[%emt 0:02:17]} Bxc4 {[%emt 0:00:36]} 32. Rxe8+ {[%emt 0:00:24]} 1-0

[Event "58th Akiba Rubinstein C 2022"]
[Site "Polanica-Zdroj"]
[Date "2022.08.19"]
[Round "7.9"]
[White "Chubar, Vladimir"]
[Black "Nisztuk, Michal"]
[Result "1-0"]
[ECO "D02"]
[WhiteElo "1809"]
[BlackElo "1548"]
[Annotator "NA RC"]
[PlyCount "81"]
[EventDate "2022.08.13"]
[EventCountry "POL"]
[SourceTitle "playchess.com"]
[Source "ChessBase"]
[SourceQuality "1"]
[TimeControl "40/5400+30:1800+30"]

1. d4 {[%emt 0:07:50]} d5 {[%emt 0:00:32]} 2. Nf3 {[%emt 0:00:42]} c5 {[%emt 0:00:52]} 3. c3 {[%emt 0:00:25]} cxd4 {[%emt 0:00:09]} 4. cxd4 {[%emt 0:00:07]} Nc6 {[%emt 0:00:21]} 5. Nc3 {[%emt 0:00:16]} Nf6 {[%emt 0:00:34]} 6. Bf4 {[%emt 0:00:38]} a6 {[%emt 0:00:30]} 7. e3 {[%emt 0:00:21]} e6 {[%emt 0:00:20]} 8. Bd3 {[%emt 0:00:47]} Bd6 {[%emt 0:00:38]} 9. Bg5 {[%emt 0:01:22]} O-O {[%emt 0:01:17]} 10. Rc1 {[%emt 0:00:42]} Bd7 {[%emt 0:01:17]} 11. Bb1 {[%emt 0:01:52]} Rc8 {[%emt 0:00:51]} 12. Qd3 {[%emt 0:02:17]} Nb4 {[%emt 0:02:15]} 13. Qd2 {[%emt 0:01:05]} a5 {[%emt 0:04:23]} 14. a3 {[%emt 0:01:30]} Na6 {[%emt 0:00:58]} 15. Qd3 {[%emt 0:02:17]} g6 {[%emt 0:00:27]} 16. Ne5 {[%emt 0:02:53]} Be7 {[%emt 0:00:54]} 17. O-O {[%emt 0:00:47]} Nc7 {[%emt 0:01:53]} 18. a4 {[%emt 0:06:43]} Nh5 {[%emt 0:04:20]} 19. Bh6 {[%emt 0:01:28]} Ng7 {[%emt 0:01:32]} 20. f4 {[%emt 0:03:26]} Re8 {[%emt 0:01:54]} 21. g4 {[%emt 0:04:30]} Bf6 22. Rc2 {[%emt 0:05:43]} Bxe5 {[%emt 0:06:33]} 23. fxe5 {[%emt 0:06:38]} Qh4 {[%emt 0:03:50]} 24. Bxg7 {[%emt 0:00:32]} Kxg7 {[%emt 0:00:26]} 25. Rg2 {[%emt 0:00:16]} Qg5 {[%emt 0:02:49]} 26. Rf4 {[%emt 0:02:26]} Na6 {[%emt 0:03:21]} 27. Qf1 {[%emt 0:01:41]} Rf8 {[%emt 0:01:14]} 28. Rgf2 {[%emt 0:01:09]} Be8 {[%emt 0:00:21]} 29. Bd3 {[%emt 0:01:28]} Nb4 {[%emt 0:01:11]} 30. Bb5 {[%emt 0:01:48]} Nc6 {[%emt 0:00:30]} 31. Nb1 {[%emt 0:04:24]} Rc7 {[%emt 0:05:34]} 32. Nd2 {[%emt 0:04:39]} Qe7 {[%emt 0:00:45]} 33. Rf6 {[%emt 0:00:42]} Nb4 {[%emt 0:03:21]} 34. Nf3 {[%emt 0:06:45]} Bxb5 {[%emt 0:02:41]} 35. axb5 {[%emt 0:00:07]} Nc2 {[%emt 0:02:46]} 36. Qd3 {[%emt 0:06:56]} Nb4 {[%emt 0:01:37]} 37. Qa3 {[%emt 0:00:28]} b6 {[%emt 0:00:52]} 38. Ng5 {[%emt 0:00:20]} Kh6 {[%emt 0:07:54]} 39. e4 {[%emt 0:06:59]} Rc1+ {[%emt 0:02:53]} 40. Kg2 {[%emt 0:00:00]} Rc2 {[%emt 0:00:00]} 41. Rxc2 {[%emt 0:02:22]} 1-0

[Event "58th Akiba Rubinstein C 2022"]
[Site "Polanica-Zdroj"]
[Date "2022.08.19"]
[Round "7.10"]
[White "Bukowska, Katarzyna"]
[Black "Gregulski, Zbigniew"]
[Result "1/2-1/2"]
[ECO "B17"]
[WhiteElo "1842"]
[BlackElo "1591"]
[Annotator "NA RC"]
[PlyCount "121"]
[EventDate "2022.08.13"]
[EventCountry "POL"]
[SourceTitle "playchess.com"]
[Source "ChessBase"]
[SourceQuality "1"]
[TimeControl "40/5400+30:1800+30"]

1. e4 {[%emt 0:00:04]} c6 {[%emt 0:00:20]} 2. d4 {[%emt 0:00:10]} d5 {[%emt 0:00:06]} 3. Nd2 {[%emt 0:00:15]} dxe4 {[%emt 0:00:53]} 4. Nxe4 {[%emt 0:00:08]} Nd7 {[%emt 0:00:06]} 5. Nf3 {[%emt 0:01:17]} Ngf6 6. Ng3 {[%emt 0:00:28]} e6 {[%emt 0:00:20]} 7. Bd3 {[%emt 0:02:04]} Be7 {[%emt 0:02:15]} 8. O-O {[%emt 0:00:29]} O-O {[%emt 0:00:08]} 9. Re1 {[%emt 0:04:19]} c5 {[%emt 0:00:36]} 10. c3 {[%emt 0:03:55]} b6 {[%emt 0:00:40]} 11. Bg5 {[%emt 0:05:45]} Bb7 {[%emt 0:00:48]} 12. Rc1 {[%emt 0:02:31]} cxd4 {[%emt 0:02:08]} 13. cxd4 {[%emt 0:02:20]} Rc8 {[%emt 0:01:21]} 14. Qe2 {[%emt 0:03:13]} Re8 {[%emt 0:03:28]} 15. Bb5 {[%emt 0:03:15]} Rf8 {[%emt 0:02:14]} 16. h3 {[%emt 0:16:47]} Nd5 {[%emt 0:01:30]} 17. Bxe7 {[%emt 0:00:17]} Qxe7 {[%emt 0:01:43]} 18. Qd2 {[%emt 0:00:57]} N7f6 {[%emt 0:01:37]} 19. Nf5 {[%emt 0:05:04]} Qd8 {[%emt 0:00:10]} 20. Rxc8 {[%emt 0:00:19]} Bxc8 {[%emt 0:00:44]} 21. Ng3 {[%emt 0:00:25]} Bb7 {[%emt 0:00:17]} 22. Ne5 {[%emt 0:02:13]} Qd6 {[%emt 0:02:20]} 23. Rc1 {[%emt 0:01:57]} Ne7 {[%emt 0:04:16]} 24. Be2 {[%emt 0:02:19]} Rd8 {[%emt 0:01:27]} 25. a3 {[%emt 0:03:11]} h6 {[%emt 0:13:56]} 26. Qe3 {[%emt 0:04:43]} Ned5 {[%emt 0:03:20]} 27. Qd2 {[%emt 0:00:33]} Ne7 {[%emt 0:01:27]} 28. Qe3 {[%emt 0:14:17]} Bd5 {[%emt 0:07:07]} 29. Rc3 {[%emt 0:02:46]} Bb7 {[%emt 0:03:05]} 30. Qd2 {[%emt 0:01:36]} Ne4 {[%emt 0:01:00]} 31. Nxe4 {[%emt 0:00:33]} Bxe4 {[%emt 0:00:15]} 32. Qf4 {[%emt 0:02:18]} Bg6 {[%emt 0:07:26]} 33. Rf3 {[%emt 0:01:37]} f6 {[%emt 0:04:04]} 34. Nxg6 {[%emt 0:01:08]} Nxg6 {[%emt 0:00:15]} 35. Qg4 {[%emt 0:01:02]} Nf8 {[%emt 0:02:42]} 36. Bc4 {[%emt 0:03:55]} Qxd4 {[%emt 0:02:58]} 37. Bxe6+ {[%emt 0:00:30]} Nxe6 {[%emt 0:00:44]} 38. Qxe6+ {[%emt 0:00:04]} Kf8 {[%emt 0:00:34]} 39. Re3 {[%emt 0:01:07]} Qd1+ {[%emt 0:00:21]} 40. Re1 {[%emt 0:00:00]} Qd6 {[%emt 0:00:00]} 41. Qe4 {[%emt 0:01:38]} Kg8 {[%emt 0:01:58]} 42. Qc4+ {[%emt 0:02:29]} Kh8 {[%emt 0:02:32]} 43. Qf7 {[%emt 0:00:56]} Qd2 {[%emt 0:01:34]} 44. Re3 {[%emt 0:05:40]} Qxb2 {[%emt 0:07:18]} 45. Rg3 {[%emt 0:00:24]} f5 {[%emt 0:01:43]} 46. Qxf5 {[%emt 0:02:51]} Rd1+ {[%emt 0:01:57]} 47. Kh2 {[%emt 0:00:13]} Qa1 {[%emt 0:01:18]} 48. Qc8+ {[%emt 0:01:08]} Kh7 {[%emt 0:00:19]} 49. Qc2+ {[%emt 0:00:13]} Kh8 {[%emt 0:00:13]} 50. Re3 {[%emt 0:01:20]} Rd8 {[%emt 0:01:25]} 51. Qf5 {[%emt 0:06:50]} Qd1 {[%emt 0:03:05]} 52. Qf7 {[%emt 0:06:01]} Qd6+ {[%emt 0:00:52]} 53. Rg3 {[%emt 0:00:15]} Rd7 {[%emt 0:02:41]} 54. Qe8+ {[%emt 0:00:27]} Kh7 {[%emt 0:00:10]} 55. Qe4+ {[%emt 0:00:03]} Kh8 {[%emt 0:00:24]} 56. Qe8+ {[%emt 0:00:55]} Kh7 {[%emt 0:00:13]} 57. Qe4+ {[%emt 0:00:05]} Kh8 58. Qe8+ Kh7 59. Qe4+ Kh8 60. Qe8+ Kh7 61. Qe4+ 1/2-1/2